[Event "15th Governor Cup 2019"]
[Site "Khanty-Mansiysk"]
[Date "2019.11.21"]
[Round "4.20"]
[White "Yakimova, Mariya"]
[Black "Voskresenskaya, Marta"]
[Result "1-0"]
[ECO "D15"]
[WhiteElo "2276"]
[BlackElo "1859"]
[Annotator "ChessBase"]
[PlyCount "80"]
[EventDate "2019.11.19"]
[EventType "swiss"]
[EventCountry "RUS"]
[SourceTitle "playchess.com"]
[Source "ChessBase"]
[SourceQuality "1"]
[TimeControl "5400+30"]

1. d4 {[%emt 0:00:00]} d5 {[%emt 0:00:00]} 2. c4 {[%emt 0:00:00]} c6 {[%emt 0:00:00]} 3. Nf3 {[%emt 0:00:00]} Nf6 {[%emt 0:00:18]} 4. Nc3 {[%emt 0:00:00]} a6 {[%emt 0:00:34]} 5. a4 {[%emt 0:00:19]} Bf5 {[%emt 0:00:15]} 6. g3 {[%emt 0:00:49]} e6 {[%emt 0:00:22]} 7. Bg2 {[%emt 0:00:29]} Nbd7 {[%emt 0:00:12]} 8. O-O {[%emt 0:01:00]} h6 {[%emt 0:00:53]} 9. Bf4 {[%emt 0:06:29]} Be7 {[%emt 0:01:00]} 10. a5 {[%emt 0:12:54]} O-O {[%emt 0:01:59]} 11. Qb3 {[%emt 0:01:07]} g5 {[%emt 0:04:53]} 12. Be3 {[%emt 0:12:22]} Rb8 {[%emt 0:05:57]} 13. Bc1 {[%emt 0:15:19]} Ne4 {[%emt 0:13:14]} 14. Nd2 {[%emt 0:00:45]} Nxd2 {[%emt 0:04:59]} 15. Bxd2 {[%emt 0:00:05]} Bf6 {[%emt 0:02:33]} 16. cxd5 {[%emt 0:02:48]} cxd5 {[%emt 0:02:33]} 17. e3 {[%emt 0:15:51]} b5 {[%emt 0:01:08]} 18. Na2 {[%emt 0:00:42]} Rc8 {[%emt 0:02:47]} 19. Rfc1 {[%emt 0:00:11]} Ra8 {[%emt 0:08:59]} 20. Bb4 {[%emt 0:02:06]} Re8 {[%emt 0:02:05]} 21. Rc3 {[%emt 0:00:43]} Rc8 {[%emt 0:03:20]} 22. Rac1 {[%emt 0:03:12]} Rxc3 {[%emt 0:00:20]} 23. Qxc3 {[%emt 0:00:06]} Qa8 {[%emt 0:01:32]} 24. Qc6 {[%emt 0:03:02]} Qxc6 {[%emt 0:00:42]} 25. Rxc6 {[%emt 0:00:03]} Ra8 {[%emt 0:03:51]} 26. Rc7 {[%emt 0:02:10]} Nf8 {[%emt 0:00:46]} 27. Nc1 {[%emt 0:00:50]} Bd8 {[%emt 0:01:24]} 28. Rc6 {[%emt 0:02:36]} Kg7 {[%emt 0:02:56]} 29. Nb3 {[%emt 0:00:24]} Nd7 {[%emt 0:00:06]} 30. Bc3 {[%emt 0:08:39]} Kg6 {[%emt 0:14:18]} 31. Nc5 {[%emt 0:01:36]} Nxc5 {[%emt 0:00:10]} 32. dxc5 {[%emt 0:00:04]} Ra7 {[%emt 0:02:05]} 33. b4 {[%emt 0:01:27]} Bc7 {[%emt 0:00:26]} 34. f4 {[%emt 0:05:22]} gxf4 {[%emt 0:00:50]} 35. gxf4 {[%emt 0:02:20]} f6 {[%emt 0:01:20]} 36. Bxd5 {[%emt 0:01:11]} Kf7 {[%emt 0:01:42]} 37. Bf3 {[%emt 0:00:06]} Bh3 {[%emt 0:00:45]} 38. e4 {[%emt 0:00:14]} f5 {[%emt 0:00:36]} 39. e5 {[%emt 0:01:23]} Bg4 {[%emt 0:03:12]} 40. Rb6 {[%emt 0:00:14]} Rb7 {[%emt 0:00:55]} 1-0

[Event "15th Governor Cup 2019"]
[Site "Khanty-Mansiysk"]
[Date "2019.11.21"]
[Round "4.21"]
[White "Mukhina, Jana"]
[Black "Mironenko, Galina"]
[Result "1/2-1/2"]
[ECO "E00"]
[WhiteElo "2105"]
[BlackElo "2236"]
[Annotator "ChessBase"]
[PlyCount "60"]
[EventDate "2019.11.19"]
[EventType "swiss"]
[EventCountry "RUS"]
[SourceTitle "playchess.com"]
[Source "ChessBase"]
[SourceQuality "1"]
[TimeControl "5400+30"]

1. d4 {[%emt 0:00:00]} Nf6 {[%emt 0:00:00]} 2. c4 {[%emt 0:00:00]} e6 {[%emt 0:00:00]} 3. a3 {[%emt 0:00:00]} d5 {[%emt 0:01:15]} 4. Nc3 {[%emt 0:06:08]} Be7 {[%emt 0:00:58]} 5. Bg5 {[%emt 0:07:55]} h6 {[%emt 0:02:41]} 6. Bh4 {[%emt 0:00:43]} b6 {[%emt 0:03:11]} 7. cxd5 {[%emt 0:07:59]} Nxd5 {[%emt 0:04:33]} 8. Bxe7 {[%emt 0:00:57]} Qxe7 {[%emt 0:01:41]} 9. Nxd5 {[%emt 0:03:50]} exd5 {[%emt 0:00:07]} 10. Qa4+ {[%emt 0:05:59]} c6 {[%emt 0:08:22]} 11. e3 {[%emt 0:03:46]} O-O {[%emt 0:02:08]} 12. Bd3 {[%emt 0:04:09]} c5 {[%emt 0:03:01]} 13. Ne2 {[%emt 0:04:14]} Bd7 {[%emt 0:02:58]} 14. Bb5 {[%emt 0:02:18]} a6 {[%emt 0:06:17]} 15. Bxd7 {[%emt 0:00:11]} Nxd7 {[%emt 0:00:07]} 16. O-O {[%emt 0:09:28]} Qd6 {[%emt 0:05:27]} 17. dxc5 {[%emt 0:03:24]} bxc5 {[%emt 0:00:34]} 18. Rfd1 {[%emt 0:01:19]} Nf6 {[%emt 0:04:07]} 19. Rac1 {[%emt 0:02:45]} Rfd8 {[%emt 0:06:32]} 20. Rc2 {[%emt 0:07:04]} Rab8 {[%emt 0:07:55]} 21. Rcd2 {[%emt 0:06:15]} Qe5 {[%emt 0:08:21]} 22. Nc3 {[%emt 0:05:06]} Rd6 {[%emt 0:05:55]} 23. Qa5 {[%emt 0:01:06]} Rc8 {[%emt 0:01:03]} 24. h3 {[%emt 0:01:24]} Kh8 {[%emt 0:08:11]} 25. Rd3 {[%emt 0:01:06]} Kg8 {[%emt 0:05:36]} 26. R3d2 {[%emt 0:00:06]} Kh8 {[%emt 0:02:51]} 27. Rc2 {[%emt 0:01:09]} Qh5 {[%emt 0:02:33]} 28. Rcd2 {[%emt 0:02:42]} Qe5 {[%emt 0:00:40]} 29. Rd3 {[%emt 0:00:52]} Kg8 {[%emt 0:00:07]} 30. R3d2 {[%emt 0:00:05]} Kh8 {[%emt 0:00:09]} 1/2-1/2

[Event "15th Governor Cup 2019"]
[Site "Khanty-Mansiysk"]
[Date "2019.11.21"]
[Round "4.22"]
[White "Kochukova, Anna"]
[Black "Dorofeeva, Nyurguiaana"]
[Result "0-1"]
[ECO "C55"]
[WhiteElo "2117"]
[BlackElo "1848"]
[Annotator "ChessBase"]
[PlyCount "132"]
[EventDate "2019.11.19"]
[EventType "swiss"]
[EventCountry "RUS"]
[SourceTitle "playchess.com"]
[Source "ChessBase"]
[SourceQuality "1"]
[TimeControl "5400+30"]

1. e4 {[%emt 0:00:00]} e5 {[%emt 0:00:00]} 2. Nf3 {[%emt 0:00:00]} Nc6 {[%emt 0:00:00]} 3. Bc4 {[%emt 0:01:37]} Nf6 {[%emt 0:00:43]} 4. d3 {[%emt 0:07:41]} Be7 {[%emt 0:02:06]} 5. Nc3 {[%emt 0:01:57]} d6 {[%emt 0:00:59]} 6. h3 {[%emt 0:02:19]} Na5 {[%emt 0:01:11]} 7. Bd5 {[%emt 0:07:45]} O-O {[%emt 0:08:16]} 8. O-O {[%emt 0:02:37]} Nxd5 {[%emt 0:09:05]} 9. exd5 {[%emt 0:12:38]} b6 {[%emt 0:02:06]} 10. b4 {[%emt 0:01:17]} Nb7 {[%emt 0:00:06]} 11. d4 {[%emt 0:00:29]} Bd7 {[%emt 0:08:52]} 12. Bb2 {[%emt 0:03:57]} Re8 {[%emt 0:03:05]} 13. dxe5 {[%emt 0:10:17]} dxe5 {[%emt 0:01:05]} 14. Nxe5 {[%emt 0:04:39]} Bxb4 {[%emt 0:01:39]} 15. Nd3 {[%emt 0:06:12]} Bd6 {[%emt 0:03:50]} 16. Qf3 {[%emt 0:01:24]} Qh4 {[%emt 0:13:49]} 17. Rfe1 {[%emt 0:06:39]} h5 {[%emt 0:01:10]} 18. Re4 {[%emt 0:05:09]} Rxe4 {[%emt 0:06:06]} 19. Nxe4 {[%emt 0:02:52]} Re8 {[%emt 0:05:58]} 20. Re1 {[%emt 0:01:35]} Kf8 {[%emt 0:15:39]} 21. Nxd6 {[%emt 0:04:27]} Rxe1+ {[%emt 0:00:26]} 22. Nxe1 {[%emt 0:01:42]} Nxd6 {[%emt 0:00:14]} 23. Qc3 {[%emt 0:00:51]} Ne8 {[%emt 0:02:46]} 24. Nf3 {[%emt 0:04:00]} Qe4 {[%emt 0:02:38]} 25. Qb3 {[%emt 0:03:37]} Ba4 {[%emt 0:02:06]} 26. Qa3+ {[%emt 0:00:50]} Kg8 {[%emt 0:00:06]} 27. Nd4 {[%emt 0:05:56]} Bxc2 {[%emt 0:02:24]} 28. Nc6 {[%emt 0:00:19]} Qe1+ {[%emt 0:02:05]} 29. Kh2 {[%emt 0:00:01]} Qxf2 {[%emt 0:01:03]} 30. Qb4 {[%emt 0:01:34]} Nf6 {[%emt 0:02:03]} 31. Ne7+ {[%emt 0:00:37]} Kh7 {[%emt 0:00:15]} 32. Bc1 {[%emt 0:00:31]} Be4 {[%emt 0:00:39]} 33. Qb2 {[%emt 0:00:30]} Qxb2 {[%emt 0:01:33]} 34. Bxb2 {[%emt 0:00:01]} Nxd5 {[%emt 0:00:12]} 35. Nxd5 {[%emt 0:00:34]} Bxd5 {[%emt 0:00:07]} 36. a3 {[%emt 0:00:06]} b5 {[%emt 0:00:26]} 37. Bd4 {[%emt 0:00:32]} a6 {[%emt 0:00:38]} 38. g3 {[%emt 0:00:18]} g6 {[%emt 0:00:52]} 39. Kg1 {[%emt 0:00:05]} Kg8 {[%emt 0:00:06]} 40. Kf2 {[%emt 0:00:18]} Kf8 {[%emt 0:00:12]} 41. Be5 {[%emt 0:00:18]} c6 {[%emt 0:00:32]} 42. Ke3 {[%emt 0:00:07]} Ke7 {[%emt 0:00:24]} 43. Kd4 {[%emt 0:00:04]} Ke6 {[%emt 0:01:37]} 44. Bb8 {[%emt 0:00:14]} f6 {[%emt 0:00:29]} 45. Kc5 {[%emt 0:00:13]} a5 {[%emt 0:01:26]} 46. Bc7 {[%emt 0:00:57]} a4 {[%emt 0:00:05]} 47. h4 {[%emt 0:00:07]} g5 {[%emt 0:00:25]} 48. Bd8 {[%emt 0:01:13]} gxh4 {[%emt 0:01:09]} 49. gxh4 {[%emt 0:00:02]} Ke5 {[%emt 0:00:25]} 50. Be7 {[%emt 0:03:11]} f5 {[%emt 0:00:24]} 51. Kb4 {[%emt 0:00:22]} Kf4 {[%emt 0:01:01]} 52. Kc3 {[%emt 0:00:34]} Kg3 {[%emt 0:00:37]} 53. Kd2 {[%emt 0:00:28]} f4 {[%emt 0:00:28]} 54. Bd6 {[%emt 0:00:31]} Kg4 {[%emt 0:00:07]} 55. Ke1 {[%emt 0:00:36]} f3 {[%emt 0:00:08]} 56. Be7 {[%emt 0:00:34]} Kg3 {[%emt 0:00:09]} 57. Bd6+ {[%emt 0:00:26]} Kxh4 {[%emt 0:00:15]} 58. Kf2 {[%emt 0:00:04]} Kg4 {[%emt 0:00:10]} 59. Kg1 {[%emt 0:00:30]} h4 {[%emt 0:00:11]} 60. Kf2 {[%emt 0:00:10]} h3 {[%emt 0:00:09]} 61. Kg1 {[%emt 0:00:05]} Be4 {[%emt 0:00:59]} 62. Bc5 {[%emt 0:00:41]} b4 {[%emt 0:01:14]} 63. axb4 {[%emt 0:00:31]} a3 {[%emt 0:00:13]} 64. b5 {[%emt 0:00:53]} a2 {[%emt 0:00:17]} 65. Bd4 {[%emt 0:00:06]} cxb5 {[%emt 0:00:45]} 66. Kh2 {[%emt 0:00:23]} f2 {[%emt 0:00:31]} 0-1

[Event "15th Governor Cup 2019"]
[Site "Khanty-Mansiysk"]
[Date "2019.11.22"]
[Round "5.4"]
[White "Bocharov, Ivan"]
[Black "Savitskiy, Sergey"]
[Result "1/2-1/2"]
[ECO "B31"]
[WhiteElo "2571"]
[BlackElo "2396"]
[Annotator "ChessBase"]
[PlyCount "73"]
[EventDate "2019.11.19"]
[EventType "swiss"]
[EventCountry "RUS"]
[SourceTitle "playchess.com"]
[Source "ChessBase"]
[SourceQuality "1"]
[TimeControl "5400+30"]

1. e4 {[%emt 0:00:00]} c5 {[%emt 0:00:00]} 2. Nf3 {[%emt 0:00:00]} Nc6 {[%emt 0:00:00]} 3. Bb5 {[%emt 0:00:00]} g6 {[%emt 0:00:38]} 4. Bxc6 {[%emt 0:00:25]} bxc6 {[%emt 0:00:29]} 5. O-O {[%emt 0:00:22]} Bg7 {[%emt 0:00:11]} 6. Re1 {[%emt 0:00:54]} Nh6 {[%emt 0:00:44]} 7. c3 {[%emt 0:00:48]} O-O {[%emt 0:00:17]} 8. d4 {[%emt 0:00:29]} cxd4 {[%emt 0:00:10]} 9. cxd4 {[%emt 0:00:04]} d5 {[%emt 0:00:14]} 10. e5 {[%emt 0:00:19]} f6 {[%emt 0:00:13]} 11. h3 {[%emt 0:02:19]} fxe5 {[%emt 0:00:28]} 12. Bxh6 {[%emt 0:05:28]} Bxh6 {[%emt 0:01:01]} 13. Nxe5 {[%emt 0:00:44]} Qb6 {[%emt 0:01:01]} 14. Qc2 {[%emt 0:03:09]} Bf5 {[%emt 0:02:39]} 15. Qc3 {[%emt 0:08:17]} Rab8 {[%emt 0:33:16]} 16. b3 {[%emt 0:01:17]} Rf6 {[%emt 0:00:21]} 17. Nd2 {[%emt 0:00:51]} Qb4 {[%emt 0:00:44]} 18. Qxb4 {[%emt 0:00:02]} Rxb4 {[%emt 0:00:06]} 19. Ndf3 {[%emt 0:00:04]} Be4 {[%emt 0:00:51]} 20. Ng4 {[%emt 0:01:29]} Kg7 {[%emt 0:10:38]} 21. Nfe5 {[%emt 0:02:10]} Re6 {[%emt 0:24:20]} 22. f3 {[%emt 0:02:46]} Bd2 {[%emt 0:01:00]} 23. fxe4 {[%emt 0:09:52]} Bxe1 {[%emt 0:00:56]} 24. Rxe1 {[%emt 0:00:05]} Rxd4 {[%emt 0:02:30]} 25. exd5 {[%emt 0:02:06]} Rxd5 {[%emt 0:02:19]} 26. Re3 {[%emt 0:00:50]} Rd1+ {[%emt 0:06:19]} 27. Kh2 {[%emt 0:00:01]} h5 {[%emt 0:00:13]} 28. Nc4 {[%emt 0:00:28]} Rxe3 {[%emt 0:00:09]} 29. Ngxe3 {[%emt 0:00:01]} Ra1 {[%emt 0:00:16]} 30. a3 {[%emt 0:02:10]} h4 {[%emt 0:01:14]} 31. Nc2 {[%emt 0:03:16]} Rb1 {[%emt 0:01:41]} 32. Nd4 {[%emt 0:00:36]} Kf6 {[%emt 0:00:43]} 33. b4 {[%emt 0:01:42]} Rc1 {[%emt 0:01:25]} 34. Nd2 {[%emt 0:05:11]} Ra1 {[%emt 0:01:44]} 35. Nc4 {[%emt 0:02:02]} Rc1 {[%emt 0:00:14]} 36. Nd2 {[%emt 0:00:01]} Ra1 {[%emt 0:00:07]} 37. Nc4 {[%emt 0:00:02]} 1/2-1/2

[Event "15th Governor Cup 2019"]
[Site "Khanty-Mansiysk"]
[Date "2019.11.22"]
[Round "5.6"]
[White "Volkov, Sergey"]
[Black "Nesterov, Arseniy"]
[Result "1/2-1/2"]
[ECO "D37"]
[WhiteElo "2572"]
[BlackElo "2489"]
[Annotator "ChessBase"]
[PlyCount "108"]
[EventDate "2019.11.19"]
[EventType "swiss"]
[EventCountry "RUS"]
[SourceTitle "playchess.com"]
[Source "ChessBase"]
[SourceQuality "1"]
[TimeControl "5400+30"]

1. d4 {[%emt 0:00:00]} Nf6 {[%emt 0:00:00]} 2. c4 {[%emt 0:00:00]} e6 {[%emt 0:00:00]} 3. Nf3 {[%emt 0:00:00]} d5 {[%emt 0:00:00]} 4. Nc3 {[%emt 0:00:00]} dxc4 {[%emt 0:00:16]} 5. e4 {[%emt 0:00:05]} Bb4 {[%emt 0:00:06]} 6. Bxc4 {[%emt 0:00:05]} Nxe4 {[%emt 0:00:14]} 7. O-O {[%emt 0:00:08]} Nxc3 {[%emt 0:00:06]} 8. bxc3 {[%emt 0:00:04]} Be7 {[%emt 0:00:16]} 9. Qe2 {[%emt 0:00:26]} O-O {[%emt 0:16:49]} 10. Rd1 {[%emt 0:01:16]} Nd7 {[%emt 0:02:04]} 11. Bb3 {[%emt 0:05:40]} Nf6 {[%emt 0:13:08]} 12. Ne5 {[%emt 0:03:19]} c5 {[%emt 0:06:37]} 13. dxc5 {[%emt 0:07:07]} Qc7 {[%emt 0:02:33]} 14. Rd3 {[%emt 0:13:27]} Qxc5 {[%emt 0:08:16]} 15. Rh3 {[%emt 0:08:28]} Bd6 {[%emt 0:23:41]} 16. Nc4 {[%emt 0:03:38]} Be7 {[%emt 0:01:08]} 17. Be3 {[%emt 0:05:47]} Qb5 {[%emt 0:01:40]} 18. Bd2 {[%emt 0:08:44]} e5 {[%emt 0:07:10]} 19. Rg3 {[%emt 0:01:31]} e4 {[%emt 0:03:00]} 20. Rg5 {[%emt 0:09:21]} Qa6 {[%emt 0:01:08]} 21. Rg3 {[%emt 0:04:12]} Bf5 {[%emt 0:02:39]} 22. Re1 {[%emt 0:01:25]} Rad8 {[%emt 0:02:54]} 23. Be3 {[%emt 0:02:10]} Bg6 {[%emt 0:01:45]} 24. Ne5 {[%emt 0:00:52]} Qxe2 {[%emt 0:00:11]} 25. Rxe2 {[%emt 0:00:05]} Bf5 {[%emt 0:02:25]} 26. Bxa7 {[%emt 0:02:18]} Nh5 {[%emt 0:00:59]} 27. Rge3 {[%emt 0:00:54]} Nf4 {[%emt 0:00:28]} 28. Re1 {[%emt 0:01:10]} Bf6 {[%emt 0:01:11]} 29. g4 {[%emt 0:02:07]} Be6 {[%emt 0:01:37]} 30. Bxe6 {[%emt 0:02:57]} fxe6 {[%emt 0:00:08]} 31. Nc4 {[%emt 0:00:29]} Nd3 {[%emt 0:01:29]} 32. Rf1 {[%emt 0:01:14]} Ra8 {[%emt 0:00:59]} 33. Bb6 {[%emt 0:01:24]} Rxa2 {[%emt 0:00:28]} 34. Rxe4 {[%emt 0:00:14]} Bh4 {[%emt 0:00:32]} 35. f4 {[%emt 0:04:22]} Rc2 {[%emt 0:00:40]} 36. Ne5 {[%emt 0:02:06]} Nxe5 {[%emt 0:00:30]} 37. Rxe5 {[%emt 0:00:18]} Ra8 {[%emt 0:00:28]} 38. Ra5 {[%emt 0:00:08]} Rc8 {[%emt 0:00:52]} 39. Bd4 {[%emt 0:00:45]} Bf6 {[%emt 0:00:22]} 40. Bxf6 {[%emt 0:04:04]} gxf6 {[%emt 0:00:04]} 41. Rb5 {[%emt 0:00:09]} Rc7 {[%emt 0:00:52]} 42. f5 {[%emt 0:01:10]} Rc4 {[%emt 0:00:43]} 43. fxe6 {[%emt 0:01:15]} Rxg4+ {[%emt 0:00:05]} 44. Kh1 {[%emt 0:00:04]} Rh4 {[%emt 0:00:51]} 45. Rxf6 {[%emt 0:01:00]} Rcxh2+ {[%emt 0:00:27]} 46. Kg1 {[%emt 0:00:05]} Rh1+ {[%emt 0:00:04]} 47. Kf2 {[%emt 0:00:42]} R1h2+ {[%emt 0:00:47]} 48. Ke3 {[%emt 0:00:19]} R2h3+ {[%emt 0:00:23]} 49. Kd2 {[%emt 0:00:36]} Rg3 {[%emt 0:00:51]} 50. Re5 {[%emt 0:01:19]} Rh2+ {[%emt 0:00:27]} 51. Re2 {[%emt 0:00:15]} Rxe2+ {[%emt 0:00:18]} 52. Kxe2 {[%emt 0:00:01]} Rxc3 {[%emt 0:00:33]} 53. e7 {[%emt 0:00:49]} Rc8 {[%emt 0:00:03]} 54. Rb6 {[%emt 0:00:07]} Re8 {[%emt 0:00:09]} 1/2-1/2

[Event "15th Governor Cup 2019"]
[Site "Khanty-Mansiysk"]
[Date "2019.11.22"]
[Round "5.7"]
[White "Frolyanov, Dmitry"]
[Black "Pogosyan, Stefan"]
[Result "1-0"]
[ECO "C78"]
[WhiteElo "2556"]
[BlackElo "2455"]
[Annotator "ChessBase"]
[PlyCount "49"]
[EventDate "2019.11.19"]
[EventType "swiss"]
[EventCountry "RUS"]
[SourceTitle "playchess.com"]
[Source "ChessBase"]
[SourceQuality "1"]
[TimeControl "5400+30"]

1. e4 {[%emt 0:01:13]} e5 {[%emt 0:00:00]} 2. Nf3 {[%emt 0:00:06]} Nc6 {[%emt 0:00:00]} 3. Bb5 {[%emt 0:00:09]} a6 {[%emt 0:00:00]} 4. Ba4 {[%emt 0:00:05]} Nf6 {[%emt 0:00:00]} 5. O-O {[%emt 0:00:08]} b5 {[%emt 0:00:00]} 6. Bb3 {[%emt 0:00:09]} Bc5 {[%emt 0:00:00]} 7. c3 {[%emt 0:00:28]} d6 {[%emt 0:00:17]} 8. a4 {[%emt 0:00:20]} Rb8 {[%emt 0:00:10]} 9. d4 {[%emt 0:00:13]} Bb6 {[%emt 0:00:04]} 10. axb5 {[%emt 0:00:08]} axb5 {[%emt 0:00:05]} 11. Na3 {[%emt 0:00:24]} exd4 {[%emt 0:23:32]} 12. cxd4 {[%emt 0:02:26]} Na5 {[%emt 0:01:58]} 13. Bc2 {[%emt 0:15:45]} b4 {[%emt 0:02:36]} 14. Nb1 {[%emt 0:00:32]} O-O {[%emt 0:02:29]} 15. Nbd2 {[%emt 0:17:57]} Bg4 {[%emt 0:08:47]} 16. e5 {[%emt 0:01:51]} Nd7 {[%emt 0:08:35]} 17. Qe2 {[%emt 0:04:51]} dxe5 {[%emt 0:04:57]} 18. dxe5 {[%emt 0:00:40]} Nc5 {[%emt 0:00:05]} 19. Ne4 {[%emt 0:03:45]} Ne6 {[%emt 0:03:07]} 20. Rd1 {[%emt 0:01:30]} Qe7 {[%emt 0:01:41]} 21. Ng3 {[%emt 0:03:11]} g6 {[%emt 0:01:25]} 22. Ne4 {[%emt 0:02:54]} Bxf3 {[%emt 0:08:38]} 23. Qxf3 {[%emt 0:00:13]} Kg7 {[%emt 0:00:41]} 24. Nf6 {[%emt 0:01:44]} h5 {[%emt 0:03:39]} 25. Qg3 {[%emt 0:14:25]} 1-0

[Event "15th Governor Cup 2019"]
[Site "Khanty-Mansiysk"]
[Date "2019.11.22"]
[Round "5.8"]
[White "Iljiushenok, Ilia"]
[Black "Safin, Robert"]
[Result "1-0"]
[ECO "B40"]
[WhiteElo "2532"]
[BlackElo "2182"]
[Annotator "ChessBase"]
[PlyCount "127"]
[EventDate "2019.11.19"]
[EventType "swiss"]
[EventCountry "RUS"]
[SourceTitle "playchess.com"]
[Source "ChessBase"]
[SourceQuality "1"]
[TimeControl "5400+30"]

1. e4 {[%emt 0:00:00]} c5 {[%emt 0:00:00]} 2. Nf3 {[%emt 0:00:00]} e6 {[%emt 0:00:00]} 3. d4 {[%emt 0:00:00]} cxd4 {[%emt 0:00:00]} 4. Nxd4 {[%emt 0:00:00]} Nf6 {[%emt 0:00:00]} 5. Nd2 {[%emt 0:00:00]} Nc6 {[%emt 0:00:00]} 6. Nxc6 {[%emt 0:00:00]} bxc6 {[%emt 0:16:52]} 7. e5 {[%emt 0:00:01]} Nd5 {[%emt 0:00:12]} 8. c4 {[%emt 0:00:10]} Nf4 {[%emt 0:08:25]} 9. g3 {[%emt 0:01:17]} Ng6 {[%emt 0:00:31]} 10. Qe2 {[%emt 0:01:16]} Qc7 {[%emt 0:13:39]} 11. f4 {[%emt 0:02:07]} d6 {[%emt 0:00:04]} 12. exd6 {[%emt 0:03:28]} Bxd6 {[%emt 0:00:11]} 13. Bg2 {[%emt 0:03:17]} O-O {[%emt 0:03:21]} 14. O-O {[%emt 0:03:37]} Bc5+ {[%emt 0:03:08]} 15. Kh1 {[%emt 0:00:30]} Rb8 {[%emt 0:04:18]} 16. Nb3 {[%emt 0:22:40]} Be7 {[%emt 0:03:21]} 17. c5 {[%emt 0:00:41]} a5 {[%emt 0:02:40]} 18. Be3 {[%emt 0:03:18]} Rb5 {[%emt 0:13:19]} 19. Rac1 {[%emt 0:06:00]} Bf6 {[%emt 0:05:55]} 20. Nd4 {[%emt 0:05:26]} Rb4 {[%emt 0:06:19]} 21. Rfd1 {[%emt 0:01:39]} Ne7 {[%emt 0:00:11]} 22. a3 {[%emt 0:04:51]} Rb8 {[%emt 0:00:57]} 23. Rd2 {[%emt 0:01:22]} Nd5 {[%emt 0:00:12]} 24. Bg1 {[%emt 0:00:44]} Bd7 {[%emt 0:02:22]} 25. Nf3 {[%emt 0:02:12]} Be7 {[%emt 0:06:54]} 26. Bd4 {[%emt 0:04:11]} f6 {[%emt 0:00:38]} 27. Re1 {[%emt 0:05:54]} Rfe8 {[%emt 0:00:12]} 28. Qd3 {[%emt 0:00:19]} Rb5 {[%emt 0:01:37]} 29. Rc2 {[%emt 0:01:45]} Qc8 {[%emt 0:01:01]} 30. Rcc1 {[%emt 0:00:52]} Qb8 {[%emt 0:01:48]} 31. Nd2 {[%emt 0:03:10]} Bf8 {[%emt 0:00:05]} 32. Nf3 {[%emt 0:01:50]} Qa7 {[%emt 0:01:38]} 33. Qc2 {[%emt 0:00:34]} Qb8 {[%emt 0:00:59]} 34. Re2 {[%emt 0:01:01]} Qa7 {[%emt 0:00:54]} 35. Ree1 {[%emt 0:04:44]} Qc7 {[%emt 0:00:37]} 36. Bf1 {[%emt 0:01:22]} Rbb8 {[%emt 0:00:04]} 37. Bd3 {[%emt 0:00:22]} g6 {[%emt 0:00:07]} 38. h4 {[%emt 0:01:07]} Bg7 {[%emt 0:00:03]} 39. Be4 {[%emt 0:04:02]} e5 {[%emt 0:01:11]} 40. fxe5 {[%emt 0:00:09]} fxe5 {[%emt 0:00:12]} 41. Bc3 {[%emt 0:02:11]} Nf6 {[%emt 0:01:32]} 42. Rcd1 {[%emt 0:01:21]} Nxe4 {[%emt 0:00:21]} 43. Qxe4 {[%emt 0:00:03]} Bf5 {[%emt 0:00:09]} 44. Qe3 {[%emt 0:04:09]} Be6 {[%emt 0:01:33]} 45. Ng5 {[%emt 0:03:55]} Bd5+ {[%emt 0:00:14]} 46. Kh2 {[%emt 0:00:18]} e4 {[%emt 0:00:30]} 47. Rd2 {[%emt 0:00:56]} Rb3 {[%emt 0:03:17]} 48. a4 {[%emt 0:03:10]} Be5 {[%emt 0:01:32]} 49. Rf1 {[%emt 0:00:59]} Qg7 {[%emt 0:00:50]} 50. Rc2 {[%emt 0:00:46]} Qh6 {[%emt 0:00:20]} 51. Kg1 {[%emt 0:00:31]} Qh5 {[%emt 0:00:40]} 52. Rcf2 {[%emt 0:00:06]} Qg4 {[%emt 0:00:29]} 53. Kg2 {[%emt 0:00:37]} Bxg3 {[%emt 0:00:33]} 54. Qxg3 {[%emt 0:00:04]} e3+ {[%emt 0:00:07]} 55. Rf3 {[%emt 0:00:02]} Bxf3+ 56. Nxf3 {[%emt 0:00:15]} Qe4 {[%emt 0:01:20]} 57. Kg1 {[%emt 0:01:05]} e2 {[%emt 0:00:28]} 58. Re1 {[%emt 0:00:08]} Rb7 {[%emt 0:00:34]} 59. Nd4 {[%emt 0:01:09]} Rf7 {[%emt 0:00:31]} 60. Rxe2 {[%emt 0:00:37]} Qb1+ {[%emt 0:00:20]} 61. Re1 {[%emt 0:00:15]} Rxe1+ {[%emt 0:00:24]} 62. Qxe1 {[%emt 0:00:01]} Qd3 {[%emt 0:00:30]} 63. Nxc6 {[%emt 0:00:24]} Rf8 {[%emt 0:00:48]} 64. Qe6+ {[%emt 0:00:06]} 1-0

[Event "15th Governor Cup 2019"]
[Site "Khanty-Mansiysk"]
[Date "2019.11.22"]
[Round "5.9"]
[White "Potapov, Pavel"]
[Black "Bilguun, Sumiya"]
[Result "1/2-1/2"]
[ECO "B40"]
[WhiteElo "2489"]
[BlackElo "2496"]
[Annotator "ChessBase"]
[PlyCount "79"]
[EventDate "2019.11.19"]
[EventType "swiss"]
[EventCountry "RUS"]
[SourceTitle "playchess.com"]
[Source "ChessBase"]
[SourceQuality "1"]
[TimeControl "5400+30"]

1. e4 {[%emt 0:00:00]} c5 {[%emt 0:00:00]} 2. Nf3 {[%emt 0:00:04]} e6 {[%emt 0:00:08]} 3. c3 {[%emt 0:00:25]} d5 {[%emt 0:00:18]} 4. exd5 {[%emt 0:00:24]} Qxd5 {[%emt 0:00:16]} 5. d4 {[%emt 0:00:20]} Nc6 {[%emt 0:00:40]} 6. Be3 {[%emt 0:01:52]} cxd4 {[%emt 0:00:15]} 7. cxd4 {[%emt 0:00:11]} Nf6 {[%emt 0:00:14]} 8. Nc3 {[%emt 0:00:28]} Qd6 {[%emt 0:00:17]} 9. Bd3 {[%emt 0:00:16]} Be7 {[%emt 0:00:23]} 10. O-O {[%emt 0:00:05]} O-O {[%emt 0:00:23]} 11. a3 {[%emt 0:00:19]} b6 {[%emt 0:06:54]} 12. Qe2 {[%emt 0:00:49]} Bb7 {[%emt 0:00:42]} 13. Rad1 {[%emt 0:03:06]} Rad8 {[%emt 0:13:05]} 14. Bb1 {[%emt 0:01:02]} Nd5 {[%emt 0:05:35]} 15. Ne4 {[%emt 0:05:42]} Qd7 {[%emt 0:01:03]} 16. Qd3 {[%emt 0:11:40]} f5 {[%emt 0:05:42]} 17. Nc3 {[%emt 0:02:53]} Bf6 {[%emt 0:02:08]} 18. Rfe1 {[%emt 0:03:33]} Nce7 {[%emt 0:01:45]} 19. Bc1 {[%emt 0:04:13]} Ng6 {[%emt 0:04:50]} 20. Ba2 {[%emt 0:02:29]} Rfe8 {[%emt 0:06:05]} 21. Nxd5 {[%emt 0:29:42]} Bxd5 {[%emt 0:00:54]} 22. Bxd5 {[%emt 0:00:15]} Qxd5 {[%emt 0:07:17]} 23. Bg5 {[%emt 0:00:57]} Rd7 {[%emt 0:04:32]} 24. h4 {[%emt 0:07:23]} h6 {[%emt 0:09:39]} 25. Bxf6 {[%emt 0:02:42]} gxf6 {[%emt 0:00:05]} 26. Qe3 {[%emt 0:01:50]} Kg7 {[%emt 0:11:10]} 27. Rc1 {[%emt 0:00:38]} h5 {[%emt 0:00:34]} 28. Rc3 {[%emt 0:01:33]} Kh7 {[%emt 0:01:23]} 29. Rec1 {[%emt 0:00:55]} Qe4 {[%emt 0:00:33]} 30. g3 {[%emt 0:04:00]} Qxe3 {[%emt 0:03:38]} 31. fxe3 {[%emt 0:01:16]} Ne7 {[%emt 0:00:54]} 32. Rc7 {[%emt 0:00:47]} Red8 {[%emt 0:00:10]} 33. Kf2 {[%emt 0:00:15]} Nd5 {[%emt 0:00:25]} 34. Rxd7+ {[%emt 0:00:48]} Rxd7 {[%emt 0:00:01]} 35. Ne1 {[%emt 0:01:28]} Kg7 {[%emt 0:04:03]} 36. Nd3 {[%emt 0:00:25]} Kf7 {[%emt 0:01:21]} 37. Rc6 {[%emt 0:02:41]} Ne7 {[%emt 0:00:11]} 38. Rc3 {[%emt 0:00:15]} Nd5 {[%emt 0:00:06]} 39. Rc6 {[%emt 0:00:03]} Ne7 {[%emt 0:00:06]} 40. Rc3 {[%emt 0:00:36]} 1/2-1/2